Cogmind - Beta 12 @@@ ROGUE MODE // 2023.10.12 @ 21:28:08 Player: art-hropod Result: Destroyed by H-61 Shepherd with Heavy Assault Cannon Performance ------------- Evolutions (2) 1000 Regions Visited (4) 800 Robots Destroyed (34) 170 Value Destroyed (794) 794 Prototype IDs (0) 0 Alien Tech Used (0) 0 Bonus (0) 0 TOTAL SCORE: 2764 Bonus ------- None Cogmind --------- Core Integrity 0/550 Matter 264/300 Energy 100/100 System Corruption 0% Temperature Cool (0) Movement Core (100) Ox1 Location -8/Materials Parts ------- > --- POWER (1) -------- (None) > --- PROPULSION (4) --- (None) > --- UTILITY (4) ------ Advanced Visual Processing Unit Improved Terrain Scanner Hacking Suite > --- WEAPON (2) ------- Beam Rifle Blade Saw > --- INVENTORY (5) ---- Flight Unit Flight Unit Flight Unit Cesium-ion Thruster Improved Heat Sink Peak State ------------ > --- POWER ------------ Improved Ion Engine > --- PROPULSION ------- Aluminum Leg Aluminum Leg Aluminum Leg Carbon-fiber Leg > --- UTILITY ---------- Improved Heat Sink Small Storage Unit Improved Terrain Scanner Hacking Suite > --- WEAPON ----------- Heavy Laser Katana > --- INVENTORY -------- Light Nuclear Core Flight Unit Flight Unit Flight Unit Cesium-ion Thruster Improved Heat Sink Light Assault Rifle Grenade Launcher [Rating: 26] Favorites ----------- Power Light Ion Engine Engine Light Ion Engine Power Core Light Nuclear Core Propulsion Aluminum Leg Leg Aluminum Leg Wheel Wheel Flight Unit Flight Unit Utility Small Storage Unit Device Heat Sink Storage Small Storage Unit Processor Advanced Visual Processing Unit Hackware Hacking Suite Protection Light Armor Plating Weapon Small Laser Energy Gun Small Laser Ballistic Gun Light Assault Rifle Launcher Grenade Launcher Slashing Weapon Katana Build | -11 -10 -9 -9 -8 ------- Run | Jun Mat Mat Min Mat Slots Evolved 4 | . . 2 . 2 Power . | . . . . . Propulsion 2 | . . 2 . . Utility 2 | . . . . 2 Weapon . | . . . . . Parts Attached 57 | 4 16 5 8 24 Power 7 | 1 1 . 2 3 Engine 6 | 1 1 . 2 2 Core 1 | . . . . 1 Reactor . | . . . . . Propulsion 24 | 2 5 3 4 10 Treads . | . . . . . Leg 20 | 2 3 3 2 10 Wheel 2 | . 2 . . . Hover . | . . . . . Flight 2 | . . . 2 . Utility 9 | 1 1 1 . 6 Device 5 | . 1 1 . 3 Storage 1 | 1 . . . . Processor 1 | . . . . 1 Hackware 1 | . . . . 1 Protection 1 | . . . . 1 Artifact . | . . . . . Weapon 17 | . 9 1 2 5 Energy Gun 8 | . 5 1 . 2 Energy Cannon . | . . . . . Ballistic Gun 5 | . 2 . 2 1 Ballistic Cannon . | . . . . . Launcher 2 | . 2 . . . Special Weapon . | . . . . . Impact Weapon . | . . . . . Slashing Weapon 2 | . . . . 2 Piercing Weapon . | . . . . . Special Melee Weapon . | . . . . . Unidentified Prototypes . | . . . . . Parts Lost 23 | . 3 5 2 13 Power 6 | . 1 1 1 3 Propulsion 10 | . 1 3 . 6 Utility 4 | . . 1 . 3 Weapon 3 | . 1 . 1 1 Highest Loss Streak 6 | . 3 2 2 6 To Critical Strikes . | . . . . . Average Slot Usage (%) 82 | . 84 74 80 85 Engine 9 | . 13 11 9 7 Leg 22 | . 13 19 23 27 Wheel 2 | . 11 2 . . Flight 1 | . . . 4 1 Device 9 | . 8 8 11 10 Storage 10 | . 14 11 11 7 Hackware 2 | . . . . 7 Protection 1 | . . . . 3 Energy Gun 13 | . 16 22 13 6 Ballistic Gun 5 | . 5 . 7 7 Slashing Weapon 1 | . . . . 3 Naked Turns . | . . . . . Heaviest Build 21 | 8 13 13 15 21 Greatest Support 54 | 20 26 20 35 54 Greatest Overweight (x) 4 | . 2 1 . 4 Average Overweight (x) . | . . . . . Largest Inventory Capacity 8 | 8 8 8 8 8 Average Capacity 7 | 7 8 8 8 7 Most Carried 8 | 8 8 8 8 8 Average Carried 6 | 4 6 6 6 7 Final Capacity 8 | 8 8 8 8 5 Final Carried 8 | 8 6 7 8 5 Class Distribution -------------------- 75% | Scavenger-Mutant 24% | Mutant Dominant Class ---------------- Mutant | -10/Materials Scavenger-Mutant | -9/Materials Scavenger-Mutant | -9/Mines Scavenger-Mutant | -8/Materials Resources | -11 -10 -9 -9 -8 ----------- Run | Jun Mat Mat Min Mat Matter Collected 773 | 211 193 96 27 246 Remotely . | . . . . . Salvage Created 1075 | . 281 251 92 451 Parts 55 | . 19 8 10 18 Haulers Intercepted 2 | . . 1 . 1 Recyclers Shooed . | . . . . . Parts Field Recycled . | . . . . . Retrieved Matter . | . . . . . Parts Self-Destructed . | . . . . . Prevented . | . . . . . Kills | -11 -10 -9 -9 -8 ------- Run | Jun Mat Mat Min Mat Combat Hostiles Destroyed 28 | . 10 4 5 9 Melee 5 | . . . . 5 Guns 21 | . 9 3 5 4 AOE 1 | . 1 . . . Classes Destroyed 9 | . 4 2 1 2 Worker 1 | . . . 1 . Hauler 2 | . . 1 . 1 Recycler 2 | . 1 1 . . Operator 1 | . 1 . . . Swarmer 11 | . 6 . 5 . Cutter 2 | . . . . 2 Grunt 11 | . 4 3 . 4 Brawler 1 | . . 1 . . Sentry 3 | . . . . 3 Best Kill Streak 5 | . 5 3 3 3 Combat Bots Only 4 | . 4 2 3 3 Max Kills in Single Turn 1 | . 1 1 1 1 Gunslinging . | . . . . . Exploded 1 | . 1 . . . Melee 1 | . . . . 1 Uniques/NPCs Destroyed . | . . . . . Combat | -11 -10 -9 -9 -8 -------- Run | Jun Mat Mat Min Mat Damage Taken 3195 | . 585 400 363 1847 Core 879 | . 152 91 86 550 Absorbed by Shields . | . . . . . Core Remaining (%) 64 | 100 39 . 55 . Volleys Fired 111 | . 41 27 15 28 Largest 2 | . 2 2 2 2 Hottest 105 | . 90 105 105 92 Shots Fired 199 | . 75 54 26 44 Gun 198 | . 74 54 26 44 Cannon . | . . . . . Launcher 1 | . 1 . . . Special . | . . . . . Kinetic 50 | . 25 . 7 18 Thermal 148 | . 49 54 19 26 Explosive 1 | . 1 . . . Electromagnetic . | . . . . . Robot Hit Streak 16 | . 6 16 3 10 Robot Miss Streak 5 | . 5 2 4 3 Penetration Max . | . . . . . Secondary Targets 2 | . 1 . 1 . Max Gunslinging Chain 1 | . 1 . 1 . Shots Hit Robots 145 | . 39 44 12 50 Core Hits 60 | . 17 12 9 22 Critical Kills . | . . . . . Critical Parts Destroyed . | . . . . . Critical Strikes 8 | . 3 . 1 4 Burn 6 | . 3 . 1 2 Sever 2 | . . . . 2 Melee Attacks 27 | . . . . 27 Impact . | . . . . . Slashing 27 | . . . . 27 Piercing . | . . . . . Sneak Attacks . | . . . . . Combat Hostiles . | . . . . . Follow-up Attacks . | . . . . . Damage Inflicted 2152 | . 535 543 155 919 Guns 1594 | . 484 543 155 412 Cannons . | . . . . . Explosions 51 | . 51 . . . Melee 507 | . . . . 507 Ramming . | . . . . . Kinetic 365 | . 166 . 33 166 Thermal 1229 | . 318 543 122 246 Explosive 51 | . 51 . . . Electromagnetic . | . . . . . Impact . | . . . . . Slashing 507 | . . . . 507 Piercing . | . . . . . Highest Corruption 2 | . 1 2 2 . Average Corruption 1 | . 1 2 2 . Corruption Purged . | . . . . . Corruption Blocked . | . . . . . Effects 7 | . . . 7 . Heat Flow Errors 1 | . . . 1 . Energy Discharges 2 | . . . 2 . Data Loss (minor) 2 | . . . 2 . Misfires 1 | . . . 1 . Alerts 1 | . . . 1 . Overload Shots . | . . . . . Overflow Damage 18 | . 18 . . . Projectiles . | . . . . . Explosions 18 | . 18 . . . Melee . | . . . . . Knockbacks . | . . . . . Impact . | . . . . . Kinetic . | . . . . . Secondary . | . . . . . Self-Inflicted Damage . | . . . . . Shots . | . . . . . Rammed . | . . . . . Targets Rammed . | . . . . . Kicked . | . . . . . Crushed . | . . . . . Highest Temperature 139 | . 90 60 139 125 Average Temperature 29 | . 39 21 22 29 Received Heat Transfer 633 | . 156 126 . 351 Siege Activations . | . . . . . Robots Corrupted . | . . . . . Combat Hostiles . | . . . . . Parts Fried . | . . . . . Impact Corruptions . | . . . . . Robots Melted 1 | . . 1 . . Combat Hostiles 1 | . . 1 . . Parts Melted 10 | . 2 6 . 2 Heat Transferred 3322 | . 1039 1196 347 740 Parts Sabotaged . | . . . . . Parts Stolen . | . . . . . Parts Stripped . | . . . . . Power Chain Reactions . | . . . . . Missiles Intercepted . | . . . . . Alert | -11 -10 -9 -9 -8 ------- Run | Jun Mat Mat Min Mat Peak Influence 334 | . 334 298 302 265 Initial 141 | . . 141 112 39 Average 146 | . 173 212 165 109 Maximum Alert Level 1 | . 1 1 1 1 Low Security (%) 67 | 100 50 48 62 85 Level 1 32 | . 49 51 37 14 Level 2 . | . . . . . Level 3 . | . . . . . Level 4 . | . . . . . Level 5 . | . . . . . High Security . | . . . . . Max Security . | . . . . . Squads Dispatched 4 | . 2 . . 2 Investigation . | . . . . . Extermination . | . . . . . Reinforcement 4 | . 2 . . 2 Assault . | . . . . . Garrison . | . . . . . Intercept . | . . . . . Searches Triggered . | . . . . . Construction Impeded . | . . . . . Haulers Reinforced . | . . . . . Active Scanning Responses . | . . . . . Cargo Convoy Interrupts . | . . . . . Stealth | -11 -10 -9 -9 -8 --------- Run | Jun Mat Mat Min Mat Distress Signals 5 | . 1 1 1 2 Communications Jammed . | . . . . . Distress Signals . | . . . . . Times Spotted 63 | . 18 13 11 21 Peak Tracking Total 7 | . 7 6 4 6 Tactical Retreats 9 | . 1 3 4 1 Traps | -11 -10 -9 -9 -8 ------- Run | Jun Mat Mat Min Mat Traps Triggered 4 | . 4 . . . Indirectly . | . . . . . Trap Hack Attempts . | . . . . . Triggered . | . . . . . Disarmed . | . . . . . Reprogrammed . | . . . . . Reused 2 | . . . 2 . Traps Extracted . | . . . . . Installed 3 | . . . 3 . Triggered 2 | . . . 2 . Machines | -11 -10 -9 -9 -8 ---------- Run | Jun Mat Mat Min Mat Machines Disabled 2 | . 2 . . . Max in Single Turn 2 | . 2 . . . Machines Repaired . | . . . . . Machines Sabotaged . | . . . . . Overloaded Fab Kills . | . . . . . Hacking | -11 -10 -9 -9 -8 --------- Run | Jun Mat Mat Min Mat Machines Accessed 6 | . 4 1 . 1 Terminals 5 | . 4 1 . . Fabricators . | . . . . . Repair Stations . | . . . . . Recycling Units . | . . . . . Scanalyzers 1 | . . . . 1 Garrison Access . | . . . . . Total Hacks 18 | . 14 2 . 2 Successful 10 | . 7 1 . 2 Failed 8 | . 7 1 . . Catastrophic 2 | . 1 1 . . Database Lockouts . | . . . . . Manual 16 | . 14 2 . . Terminals 16 | . 14 2 . . Fabricators . | . . . . . Repair Stations . | . . . . . Recycling Units . | . . . . . Scanalyzers 2 | . . . . 2 Garrison Access . | . . . . . Terminal Hacks 2 | . 2 . . . Robot Analysis 2 | . 2 . . . Fabricator Hacks . | . . . . . Repair Station Hacks . | . . . . . Recycling Unit Hacks . | . . . . . Scanalyzer 2 | . . . . 2 Insert Component 1 | . . . . 1 Analyze 1 | . . . . 1 Garrison Access Hacks . | . . . . . Unauthorized Hacks 6 | . 5 1 . . Terminals 6 | . 5 1 . . Assimilate 1 | . 1 . . . Botnet 4 | . 3 1 . . Operators 1 | . 1 . . . Fabricators . | . . . . . Repair Stations . | . . . . . Recycling Units . | . . . . . Scanalyzers . | . . . . . Garrison Access . | . . . . . Data Cores Recovered . | . . . . . Used . | . . . . . Hacking Detections 5 | . 4 1 . . Full Trace Events . | . . . . . Feedback Events . | . . . . . Feedback Blocked . | . . . . . Robot Schematics Acquired . | . . . . . Robots Built . | . . . . . Authchips . | . . . . . Time . | . . . . . Total Robot Build Rating . | . . . . . Part Schematics Acquired 1 | . . . . 1 Parts Built . | . . . . . Authchips . | . . . . . Time . | . . . . . Total Part Build Rating . | . . . . . Parts Repaired . | . . . . . Time . | . . . . . Parts Recycled . | . . . . . Recycled Matter . | . . . . . Retrieved Matter . | . . . . . Retrieved Components . | . . . . . Parts Scanalyzed 1 | . . . . 1 Part Schematics Acquired 1 | . . . . 1 Parts Damaged . | . . . . . Bothacking | -11 -10 -9 -9 -8 ------------ Run | Jun Mat Mat Min Mat Used RIF Installer . | . . . . . Robots Hacked . | . . . . . Non-combat . | . . . . . Combat . | . . . . . Robot Hacks Applied . | . . . . . Relay Couplers Released . | . . . . . Fabnet Peak Effective % . | . . . . . Robots Rewired . | . . . . . Allies Hacked . | . . . . . Hacks Repelled . | . . . . . Allies | -11 -10 -9 -9 -8 -------- Run | Jun Mat Mat Min Mat Total Allies . | . . . . . Largest Group . | . . . . . Highest-Rated Group . | . . . . . Highest-Rated Ally . | . . . . . Total Orders . | . . . . . Ally Attacks . | . . . . . Total Damage . | . . . . . Kills . | . . . . . Allies Corrupted . | . . . . . Allies Melted . | . . . . . Intel | -11 -10 -9 -9 -8 ------- Run | Jun Mat Mat Min Mat Robot Analysis Total 2 | . 2 . . . Derelict Logs Recovered 1 | . . . 1 . Drone Launches . | . . . . . Drone Recoveries . | . . . . . Exploration | -11 -10 -9 -9 -8 ------------- Run | Jun Mat Mat Min Mat Turns Passed 1762 | 81 346 255 465 615 Spaces Moved 1044 | 58 191 127 327 341 Core 13 | 6 3 . . 4 Treads . | . . . . . Legs 908 | 52 76 116 327 337 Wheels 123 | . 112 11 . . Hover . | . . . . . Flight . | . . . . . Fastest Speed 50 | 50 80 95 120 100 Average Speed 117 | 112 104 126 120 120 Slowest Speed 250 | 120 190 190 120 250 Overloaded Moves . | . . . . . Propulsion Burnouts . | . . . . . Robots Hopped . | . . . . . Cave-ins Triggered . | . . . . . Exploration Rate (%) 32 | 4 50 20 56 33 Regions Visited 4 Branch Regions 1 Pre-discovered Areas . | . . . . . Known Exits Taken . | . . . . . Unknown Exits Taken 4 | 1 1 1 1 . Scrap Searched . | . . . . . Spaces Dug 1 | . . . . 1 Terrain Destroyed 1 | . . . . 1 Melee 1 | . . . . 1 Projectile . | . . . . . AOE . | . . . . . Terrain Rammed . | . . . . . Walls Destroyed . | . . . . . Machines Disabled . | . . . . . Actions | -11 -10 -9 -9 -8 --------- Run | Jun Mat Mat Min Mat Total 1334 | 73 260 167 376 458 Wait 37 | . 4 4 12 17 Move 1040 | 57 190 126 326 341 Hop . | . . . . . Pick Up 35 | 12 7 5 6 5 Fast Attach 28 | . 3 . 5 20 Attach 22 | 4 11 4 1 2 Detach 3 | . 2 . . 1 Swap 7 | . 2 1 2 2 Drop 21 | . . . 6 15 Fire 111 | . 41 27 15 28 Melee 27 | . . . . 27 Ram . | . . . . . Kick . | . . . . . Crush . | . . . . . Escape Stasis . | . . . . . Rewire . | . . . . . Trap 3 | . . . 3 . Miscellaneous . | . . . . . Route ------- -11/Junkyard -10/Materials (discovered 3 exits: *Mat x2 / [*Min]) -9/Materials -9/Mines -8/Materials (discovered 1 exit: *Fac) History --------- Turn | Location | Event 3 | -11/Junkyard | Discovered new exit (range 15) 82 | -11/Junkyard | Entered Materials 287 | -10/Materials | Core integrity fell below 50% 306 | -10/Materials | Build established: Mutant 311 | -10/Materials | Lost 3 parts (1p1n1w) 312 | -10/Materials | Discovered new exit (range 9) 363 | -10/Materials | Discovered new exit (range 11) 408 | -10/Materials | Discovered new exit (range 6) 428 | -10/Materials | Entered another Materials area 428 | -9/Materials | Evolved 2 slots: Propulsion x2 656 | -9/Materials | Discovered new exit (range 12) 683 | -9/Materials | Entered Mines 704 | -9/Mines | Build established: Scavenger-Mutant 770 | -9/Mines | Learned location of 1 exit from Materials 943 | -9/Mines | Found a hidden stash of uninstalled traps 1053 | -9/Mines | Discovered new exit (range 13) 1071 | -9/Mines | Joined a pair of Derelicts in attacking an 0b10 outpost 1130 | -9/Mines | Assembled infested the area 1148 | -9/Mines | Entered Materials 1148 | -8/Materials | Evolved 2 slots: Utility x2 1149 | -8/Materials | Identified exit to Factory 1711 | -8/Materials | Core integrity fell below 50% 1734 | -8/Materials | Lost 6 parts (1p2n2u1w) 1739 | -8/Materials | Core integrity fell below 20% 1763 | -8/Materials | Destroyed by H-61 Shepherd with Heavy Assault Cannon Last Messages --------------- 01738_ U-05 Engineer lays Concrete. 01739_ U-05 Engineer builds a Wall. 01742_ U-05 Engineer lays Concrete. 01743_ Penetrated by Slug. 01743_ Knocked back. 01744_ U-05 Engineer lays Concrete. 01747_ U-05 Engineer builds a Wall. 01748_ U-05 Engineer builds a Door. 01751_ U-05 Engineer builds a Wall. 01753_ Knocked back. 01755_ U-05 Engineer builds a Wall. 01758_ Penetrated by Slug. 01758_ Carbon-fiber Leg destroyed. 01758_ Critical hit (Blast). 01758_ Knocked back. 01759_ Acquired 3 matter. 01759_ U-05 Engineer lays Concrete. 01761_ U-05 Engineer builds a Wall. 01762_ M-13 Machinist repairs H-61 Shepherd. 01763_ Imp. Ion Engine destroyed. Map ----- +----------------------------------------------------+ | | | | | | | | | | | | | | | | | | | | | | | | | | | | | ?????????????????????????????????????????????????? | | ?????????????????????????#???#?#??????????#??????? | | ?????????????#????????????????#??????????????????? | | ???????????#?????????????#???#???????????????????? | | ???????????????#########?#?#????????#????????????? | | ????????????????# #????#?#?###??????????????? | | ???????????????## ##??#????# ??????????????? | | ????????????????# #####????# #??????#???????? | | ???????#?????#??# # #????# #????#?????????? | | ?????????????#?## #%< #?#??# # ?? ?? ??????? | | ???????????#?#??# %= ; %#????# #? ??""" ??????? | | ????????????????## %%###H@ ##?### #?? """ ??????? | | ???????????????## =% m% #??# # """ #?????? | | ??????????#????# =% ] ##?# + #?????? | | ??????????#??### % u!u = ;??# # """ #?????? | | ?????????????# u ###;#####?# #? """ ??????? | | ?????????????# # %=# ###????# # ???""" ??????? | | ?????????????# # ####???##?# #?????? ??????? | | ?????????????# # ########### #??????#???????? | | ?????????????# # #??????????????? | | ?????????????# #########??????? | | ???????? ?"??#### # ??? ???? | | ????????????????############### # """"???????? | | ?????????? ????#??#???????????# # [ """"???????? | | ?????????????????#?############ # """""??????? | | ?????????????????? + """""??????? | | ??????? ????? ??? # """""??????? | | ?????????????????? # """""#?????? | | ???????? ????????? # ="""""#?????? | | ????????????? ?############# # #?????? | | ????????????? ## # ##########?????? | | ???????????? ## ! [ """ # #????#???? ????? | | ??????????"?" ## !! """ + #??????#???????? | | ???????????"" ## """ # ##??#?#????????? | | ????????????" ## """ # #??#???????????? | | ???????????? # ! """ # #??????????????? | +----------------------------------------------------+ Best States ------------- Heat Dissipation 45 Energy Generation 14 Energy Capacity 265 Matter Stores 300 Matter Capacity 300 Sight Range 16 Terrain Scan Range 16 Terrain Scan Density 10 Armor Coverage 150 Evasion (%) 55 Offensive Hacking 10 Item Schematics ----------------- Hacking Suite | -8/Materials | Scanalyzed Robot Schematics ------------------ None Fabricated ------------ Nothing Alien Tech Used ----------------- None Achievements -------------- None Challenges ------------ None Game ------ Seed SensorNodeSpecial Manual? 0 Play Time 00:27:49 Cumulative 62.5 hours Start 2023.10.12 @ 18:24:10 End 2023.10.12 @ 21:28:08 Sessions 3 Manual Loads 0 Difficulty Rogue Special Mode None Game No. 82 Rogue 66 Adventurer 9 Explorer 7 Win Type - Total 4 Types 4/0/0/0/0/0/0/0/0 Lore% 18 Gallery% 42 Achievement% 31 Wizard Run 0 Options --------- ASCII 0 Keyboard 0 Movement Mouse Keybinds 0 Fullscreen 1 Font 32/Terminus Map View 63x52 Tactical HUD 1 Map Filters NONE Filters NONE Steam 1 RUN: 42215326-ece4-42a5-a221-988fdf78d145